lending/lending_fUSD_20250121
["ID","MTS","AMOUNT","RATE_DAILY","PERIOD"]
[349770840,1737419447795,-500.0,0.00021067,2]
[349770841,1737419447804,-1465.95,0.00021067,2]
[349770842,1737419447813,-1779.14,0.00021067,2]
[349770843,1737419447822,-500.0,0.00021067,2]
[349770844,1737419447831,-707.97,0.00021067,2]
[349770845,1737419447841,-500.0,0.00021067,2]
[349770846,1737419447850,-1419.24,0.00021067,2]
[349770847,1737419447863,-500.0,0.00021067,2]
[349770848,1737419447873,-500.0,0.00021067,2]
[349770849,1737419447885,-661.24,0.00021067,2]
[349770850,1737419447895,-928.62,0.00021095,2]
[349770851,1737419447905,-1662.47,0.00021095,2]
[349770852,1737419447914,-852.81,0.00021095,2]
[349770853,1737419447923,-647.99,0.00021095,2]
[349770854,1737419447933,-1964.8,0.00021095,2]
[349770855,1737419447942,-1260.29,0.00021095,2]
[349770856,1737419447951,-1244.44,0.00021095,2]
[349770857,1737419447959,-1302.24,0.00021095,2]
[349770858,1737419447968,-500.0,0.00021095,2]
[349770859,1737419447977,-918.21,0.00021095,2]
[349770860,1737419447987,-886.03,0.00021095,2]
[349770861,1737419447995,-2259.37,0.00021095,2]
[349770862,1737419448005,-1757.4,0.00021095,2]
[349770863,1737419448014,-1001.14,0.00021095,2]
[349770864,1737419448025,-1034.05,0.00021095,2]
[349770865,1737419448034,-166.48406514,0.00021095,2]
[349770866,1737419448044,-500.0,0.00021095,2]
[349770867,1737419448053,-2979.95,0.00021095,2]
[349770868,1737419448062,-500.0,0.00021095,2]
[349770869,1737419448072,-500.0,0.00021095,2]
[349770870,1737419448081,-773.56,0.00021095,2]
[349770871,1737419448090,-500.0,0.00021095,2]
[349770872,1737419448099,-873.7,0.00021095,2]
[349770873,1737419448109,-1439.56,0.00021095,2]
[349770874,1737419448118,-500.0,0.00021095,2]
[349770875,1737419448129,-500.0,0.00021095,2]
[349770876,1737419448139,-500.0,0.00021095,2]
[349770877,1737419448148,-500.0,0.00021095,2]
[349770878,1737419448158,-500.0,0.00021095,2]
[349770879,1737419448168,-2761.08,0.00021095,2]
[349770880,1737419448178,-500.0,0.00021095,2]
[349770881,1737419448188,-500.0,0.00021095,2]
[349770882,1737419448198,-1016.0,0.00021096,4]
[349770883,1737419448207,-83811.15108323,0.00021129,2]
[349770884,1737419448218,-500.0,0.00021166,2]
[349770885,1737419448227,-910.58,0.00021166,2]
[349770886,1737419448237,-589.02,0.00021166,2]
[349770887,1737419448246,-500.0,0.00021166,2]
[349770888,1737419448255,-500.0,0.00021166,2]
[349770889,1737419448265,-1187.29,0.00021166,2]
[349770890,1737419448274,-500.0,0.00021166,2]
[349770891,1737419448283,-370.441614,0.00021166,2]
[349770892,1737419448293,-855.81,0.00021166,2]
[349770893,1737419448302,-500.0,0.00021166,2]
[349770894,1737419448312,-626.503501,0.00021166,2]
[349770895,1737419448322,-500.0,0.00021166,2]
[349770896,1737419448332,-526.89,0.00021166,2]
[349770897,1737419448341,-1426.85,0.00021166,2]
[349770898,1737419448350,-713.77,0.00021166,2]
[349770899,1737419448360,-1128.17,0.00021166,2]
[349770900,1737419448369,-603.78,0.00021166,2]
[349770901,1737419448380,-155.24774,0.00021166,2]
[349770902,1737419448389,-500.0,0.00021166,2]
[349770903,1737419448398,-500.0,0.00021166,2]
[349770904,1737419448410,-2410.56,0.00021166,2]
[349770905,1737419448419,-229.605329,0.00021166,2]
[349770906,1737419448428,-1787.76,0.00021166,2]
[349770907,1737419448437,-1214.36,0.00021166,2]
[349770908,1737419448447,-904.45,0.00021166,2]
[349770909,1737419448457,-1963.56,0.00021166,2]
[349770910,1737419448466,-2104.66,0.00021166,2]
[349770911,1737419448476,-523.46,0.00021166,2]
[349770912,1737419448485,-160.506551,0.00021166,2]
[349770913,1737419448494,-525.08459881,0.00021166,2]
[349770914,1737419448504,-1392.11,0.00021166,2]
[349770915,1737419448513,-1119.74,0.00021166,2]
[349770916,1737419448523,-159.243379,0.00021166,2]
[349770917,1737419448532,-2596.32,0.00021166,2]
[349770918,1737419448541,-1001.31,0.00021166,2]
[349770919,1737419448551,-154.234305,0.00021166,2]
[349770920,1737419448561,-209.023691,0.00021166,2]
[349770921,1737419448570,-1158.41,0.00021166,2]
[349770922,1737419448579,-909.85,0.00021166,2]
[349770923,1737419448589,-500.0,0.00021167,2]
[349770924,1737419448599,-500.0,0.00021167,2]
[349770925,1737419448609,-500.0,0.00021167,2]
[349770926,1737419448618,-500.0,0.00021167,2]
[349770927,1737419448630,-500.0,0.00021167,2]
[349770928,1737419448640,-500.0,0.00021167,2]
[349770929,1737419448650,-505.18258187,0.00021167,2]
[349770930,1737419448660,-500.0,0.00021167,2]
[349770931,1737419448680,-500.0,0.00021167,2]
[349770932,1737419448694,-500.0,0.00021167,2]
[349770933,1737419448704,-500.0,0.00021167,2]
[349770934,1737419448714,-500.0,0.00021167,2]
[349770935,1737419448723,-500.0,0.00021167,2]
[349770936,1737419448732,-500.0,0.00021167,2]
[349770937,1737419448742,-500.0,0.00021167,2]
[349770938,1737419448751,-500.0,0.00021167,2]
[349770939,1737419448760,-500.0,0.00021167,2]
[349770940,1737419448770,-500.0,0.00021167,2]
[349770941,1737419448784,-500.0,0.00021167,2]
[349770942,1737419448794,-500.0,0.00021167,2]
[349770943,1737419448803,-208.0,0.0002117,2]
[349770944,1737419448813,-500.0,0.00021241,2]
[349770945,1737419448823,-500.0,0.00021241,2]
[349770946,1737419448834,-429.91334376,0.00021244,2]
[349770947,1737419448843,-328.80498662,0.00021279,2]
[349770948,1737419448857,-151.88,0.00021294,2]
[349770949,1737419448866,-32305.52755111,0.000213,2]
[349770950,1737419448879,-500.0,0.0002134,2]
[349770951,1737419448890,-500.0,0.0002134,2]
[349770952,1737419448902,-500.0,0.0002134,2]
[349770953,1737419448912,-500.0,0.0002134,2]
[349770954,1737419448922,-500.0,0.0002134,2]
[349770955,1737419448932,-500.0,0.0002134,2]
[349770956,1737419448944,-500.0,0.0002134,2]
[349770957,1737419448955,-500.0,0.0002134,2]
[349770958,1737419448965,-500.0,0.0002134,2]
[349770959,1737419448975,-500.0,0.0002134,2]
[349770960,1737419448985,-500.0,0.0002134,2]
[349770961,1737419448995,-500.0,0.0002134,2]
[349770962,1737419449005,-500.0,0.0002134,2]
[349770963,1737419449014,-586.57252604,0.0002134,2]
[349770964,1737419449024,-500.0,0.0002134,2]
[349770965,1737419449033,-500.0,0.0002134,2]
[349770966,1737419449043,-2184.25,0.0002134,2]
[349770967,1737419449052,-500.0,0.0002134,2]
[349770968,1737419449061,-500.0,0.0002134,2]
[349770969,1737419449070,-500.0,0.0002134,2]
[349770970,1737419449079,-500.0,0.0002134,2]
[349770971,1737419449088,-3209.35,0.0002134,2]
[349770972,1737419449098,-500.0,0.0002134,2]
[349770973,1737419449107,-500.0,0.0002134,2]
[349770974,1737419449117,-500.0,0.0002134,2]
[349770975,1737419449130,-500.0,0.0002134,2]
[349770976,1737419449139,-500.0,0.0002134,2]
[349770977,1737419449149,-500.0,0.0002134,2]
[349770978,1737419449159,-2028.93,0.0002134,2]
[349770979,1737419449168,-500.0,0.0002134,2]
[349770980,1737419449178,-172.65617786,0.0002134,2]
[349770981,1737419449187,-500.0,0.0002134,2]
[349770982,1737419449197,-500.0,0.0002134,2]
[349770983,1737419449207,-543.51,0.0002134,2]
[349770984,1737419449216,-1683.76,0.0002134,2]
[349770985,1737419449226,-500.0,0.0002134,2]
[349770986,1737419449236,-500.0,0.0002134,2]
[349770987,1737419449245,-500.0,0.0002134,2]
[349770988,1737419449255,-500.0,0.0002134,2]
[349770989,1737419449264,-500.0,0.0002134,2]
[349770990,1737419449274,-500.0,0.00021341,2]
[349770991,1737419449283,-500.0,0.00021341,2]
[349770992,1737419449293,-500.0,0.00021341,2]
[349770993,1737419449302,-500.0,0.00021341,2]
[349770994,1737419449312,-500.0,0.00021341,2]
[349770995,1737419449322,-500.0,0.00021341,2]
[349770996,1737419449331,-500.0,0.00021341,2]
[349770997,1737419449341,-500.0,0.00021341,2]
[349770998,1737419449351,-565.48,0.00021341,2]
[349770999,1737419449360,-500.0,0.00021341,2]
[349771000,1737419449370,-1097.21,0.00021341,2]
[349771001,1737419449382,-2424.54,0.00021341,2]
[349771002,1737419449392,-732.06,0.00021341,2]
[349771003,1737419449403,-500.0,0.00021341,2]
[349771004,1737419449413,-500.0,0.00021341,2]
[349771005,1737419449423,-1674.8,0.00021341,2]
[349771006,1737419449433,-500.0,0.00021341,2]
[349771007,1737419449443,-908.71,0.00021341,2]
[349771008,1737419449458,-1534.82,0.00021341,2]
[349771009,1737419449472,-500.0,0.00021341,2]
[349771010,1737419449483,-950.83,0.00021341,2]
[349771011,1737419449497,-500.0,0.00021341,2]
[349771012,1737419449506,-748.94,0.00021341,2]
[349771013,1737419449515,-527.23,0.00021341,2]
[349771014,1737419449524,-1112.81,0.00021341,2]
[349771015,1737419449533,-847.73,0.00021341,2]
[349771016,1737419449542,-2428.48,0.00021341,2]
[349771017,1737419449551,-1119.66,0.00021341,2]
[349771018,1737419449561,-1036.96,0.00021341,2]
[349771019,1737419449570,-500.0,0.00021341,2]
[349771020,1737419449579,-1562.21,0.00021341,2]
[349771021,1737419449588,-1000.0,0.00021341,2]
[349771022,1737419449598,-1223.32,0.00021341,2]
[349771023,1737419449607,-500.0,0.00021341,2]
[349771024,1737419449617,-546.59,0.00021341,2]
[349771025,1737419449629,-1208.2,0.00021341,2]
[349771026,1737419449638,-500.0,0.00021341,2]
[349771027,1737419449648,-1831.04,0.00021341,2]
[349771028,1737419449667,-500.0,0.00021341,2]
[349771029,1737419449683,-500.0,0.00021341,2]
[349771030,1737419449693,-1465.95,0.00021341,2]
[349771031,1737419449828,-1779.14,0.00021341,2]
[349771032,1737419449838,-500.0,0.00021341,2]
[349771033,1737419449848,-707.97,0.00021341,2]
[349771034,1737419449861,-500.0,0.00021341,2]
[349771035,1737419449872,-1419.24,0.00021341,2]
[349771036,1737419449884,-500.0,0.00021341,2]
[349771037,1737419449893,-500.0,0.00021341,2]
[349771038,1737419449903,-661.24,0.00021341,2]
[349771039,1737419449912,-928.62,0.00021369,2]
[349771040,1737419449922,-1662.47,0.00021369,2]
[349771041,1737419449931,-852.81,0.00021369,2]
[349771042,1737419449942,-647.99,0.00021369,2]
[349771043,1737419449951,-1964.8,0.00021369,2]
[349771044,1737419449960,-1260.29,0.00021369,2]
[349771045,1737419449970,-1244.44,0.00021369,2]
[349771046,1737419449979,-1302.24,0.00021369,2]
[349771047,1737419449988,-500.0,0.00021369,2]
[349771048,1737419449997,-918.21,0.00021369,2]
[349771049,1737419450006,-886.03,0.00021369,2]
[349771050,1737419450016,-2259.37,0.00021369,2]
[349771051,1737419450026,-1757.4,0.00021369,2]
[349771052,1737419450035,-1001.14,0.00021369,2]
[349771053,1737419450044,-1034.05,0.00021369,2]
[349771054,1737419450053,-500.0,0.00021369,2]
[349771055,1737419450062,-2979.95,0.00021369,2]
[349771056,1737419450071,-507.31216062,0.00021369,2]
[349771057,1737419450079,-500.0,0.00021369,2]
[349771058,1737419450088,-773.56,0.00021369,2]
[349771059,1737419450098,-500.0,0.00021369,2]
[349771060,1737419450107,-873.7,0.00021369,2]
[349771061,1737419450117,-1439.56,0.00021369,2]
[349771062,1737419450129,-500.0,0.00021369,2]
[349771063,1737419450138,-500.0,0.00021369,2]
[349771064,1737419450148,-500.0,0.00021369,2]
[349771065,1737419450158,-500.0,0.00021369,2]
[349771066,1737419450167,-2761.08,0.00021369,2]
[349771067,1737419450176,-500.0,0.00021369,2]
[349771068,1737419450186,-500.0,0.00021369,2]
[349771069,1737419450196,-8635.89165538,0.000214,2]
[349771070,1737419450206,-500.0,0.0002144,2]
[349771071,1737419450215,-910.58,0.0002144,2]
[349771072,1737419450225,-589.02,0.0002144,2]
[349771073,1737419450234,-500.0,0.0002144,2]
[349771074,1737419450243,-500.0,0.0002144,2]
[349771075,1737419450252,-1187.29,0.0002144,2]
[349771076,1737419450261,-500.0,0.0002144,2]
[349771077,1737419450271,-370.441614,0.0002144,2]
[349771078,1737419450280,-855.81,0.0002144,2]
[349771079,1737419450289,-500.0,0.0002144,2]
[349771080,1737419450299,-626.503501,0.0002144,2]
[349771081,1737419450307,-500.0,0.0002144,2]
[349771082,1737419450316,-526.89,0.0002144,2]
[349771083,1737419450326,-1426.85,0.0002144,2]
[349771084,1737419450336,-713.77,0.0002144,2]
[349771085,1737419450346,-1128.17,0.0002144,2]
[349771086,1737419450356,-603.78,0.0002144,2]
[349771087,1737419450365,-155.24774,0.0002144,2]
[349771088,1737419450375,-500.0,0.0002144,2]
[349771089,1737419450386,-500.0,0.0002144,2]
[349771090,1737419450396,-2410.56,0.0002144,2]
[349771091,1737419450405,-229.605329,0.0002144,2]
[349771092,1737419450415,-1787.76,0.0002144,2]
[349771093,1737419450424,-1214.36,0.0002144,2]
[349771094,1737419450433,-904.45,0.0002144,2]
[349771095,1737419450442,-1963.56,0.0002144,2]
[349771096,1737419450453,-2104.66,0.0002144,2]
[349771097,1737419450463,-523.46,0.0002144,2]
[349771098,1737419450472,-160.506551,0.0002144,2]
[349771099,1737419450481,-1392.11,0.0002144,2]
[349771100,1737419450493,-1119.74,0.0002144,2]
[349771101,1737419450502,-159.243379,0.0002144,2]
[349771102,1737419450512,-2596.32,0.0002144,2]
[349771103,1737419450522,-1001.31,0.0002144,2]
[349771104,1737419450532,-209.023691,0.0002144,2]
[349771105,1737419450541,-1158.41,0.0002144,2]
[349771106,1737419450552,-909.85,0.0002144,2]
[349771107,1737419450561,-189.87526503,0.00021441,2]
[349771108,1737419450570,-500.0,0.00021441,2]
[349771109,1737419450580,-500.0,0.00021441,2]
[349771110,1737419450589,-500.0,0.00021441,2]
[349771111,1737419450599,-500.0,0.00021441,2]
[349771112,1737419450608,-506.28701953,0.00021441,2]
[349771113,1737419450618,-500.0,0.00021441,2]
[349771114,1737419450629,-500.0,0.00021441,2]
[349771115,1737419450639,-500.0,0.00021441,2]
[349771116,1737419450648,-500.0,0.00021441,2]
[349771117,1737419450657,-500.0,0.00021441,2]
[349771118,1737419450667,-500.0,0.00021441,2]
[349771119,1737419450676,-500.0,0.00021441,2]
[349771120,1737419450685,-500.0,0.00021441,2]
[349771121,1737419450694,-500.0,0.00021441,2]
[349771122,1737419450703,-500.0,0.00021441,2]
[349771123,1737419450712,-500.0,0.00021441,2]
[349771124,1737419450721,-981.55,0.00021459,2]
[349771125,1737419450731,-389.55,0.00021459,2]
[349771126,1737419450740,-150.0,0.00021459,2]
[349771127,1737419450750,-150.0,0.00021459,2]
[349771128,1737419450759,-150.0,0.00021459,2]
[349771129,1737419450768,-150.0,0.00021459,2]
[349771130,1737419450777,-150.0,0.00021459,2]
[349771131,1737419450787,-981.55,0.00021459,2]
[349771132,1737419450796,-437.63,0.00021459,2]
[349771133,1737419450806,-150.0,0.00021459,2]
[349771134,1737419450815,-150.0,0.00021459,2]
[349771135,1737419450824,-150.0,0.00021459,2]
[349771136,1737419450834,-981.55,0.00021459,2]
[349771137,1737419450843,-150.0,0.00021459,2]
[349771138,1737419450852,-437.63,0.00021459,2]
[349771139,1737419450866,-981.55,0.00021459,2]
[349771140,1737419450875,-150.0,0.00021459,2]
[349771141,1737419450888,-150.0,0.00021459,2]
[349771142,1737419450897,-150.0,0.00021459,2]
[349771143,1737419450907,-150.0,0.00021459,2]
[349771144,1737419450916,-437.63,0.00021459,2]
[349771145,1737419450925,-150.0,0.00021459,2]
[349771146,1737419450935,-150.0,0.00021459,2]
[349771147,1737419450951,-150.0,0.00021459,2]
[349771148,1737419450960,-278.54,0.00021459,2]
[349771149,1737419450969,-437.63,0.00021459,2]
[349771150,1737419450979,-981.55,0.00021459,2]
[349771151,1737419450987,-150.0,0.00021459,2]
[349771152,1737419450997,-150.0,0.00021459,2]
[349771153,1737419451006,-437.63,0.00021459,2]
[349771154,1737419451016,-437.15,0.00021459,2]
[349771155,1737419451027,-150.0,0.00021459,2]
[349771156,1737419451035,-150.0,0.00021459,2]
[349771157,1737419451045,-187.95,0.00021459,2]
[349771158,1737419451054,-981.55,0.00021459,2]
[349771159,1737419451063,-150.0,0.00021459,2]
[349771160,1737419451072,-150.0,0.00021459,2]
[349771161,1737419451082,-981.55,0.00021459,2]
[349771162,1737419451091,-150.0,0.00021459,2]
[349771163,1737419451100,-981.55,0.00021459,2]
[349771164,1737419451109,-500.0,0.00021466,7]
[349771165,1737419451118,-500.0,0.00021466,7]
[349771166,1737419451130,-500.0,0.00021466,7]
[349771167,1737419451139,-500.0,0.00021466,7]
[349771168,1737419451148,-500.0,0.00021466,7]
[349771169,1737419451157,-500.0,0.00021466,7]
[349771170,1737419451166,-500.0,0.00021466,7]
[349771171,1737419451174,-400.46,0.00021466,7]
[349771172,1737419451183,-500.0,0.00021466,7]
[349771173,1737419451192,-500.0,0.00021466,7]
[349771174,1737419451201,-500.0,0.00021466,7]
[349771175,1737419451211,-500.0,0.00021466,7]
[349771176,1737419451221,-500.0,0.00021466,7]
[349771177,1737419451231,-500.0,0.00021466,7]
[349771178,1737419451240,-500.0,0.00021466,7]
[349771179,1737419451249,-500.0,0.00021466,7]
[349771180,1737419451259,-500.0,0.00021466,7]
[349771181,1737419451269,-500.0,0.00021466,7]
[349771182,1737419451278,-500.0,0.00021466,7]
[349771183,1737419451288,-500.0,0.00021466,7]
[349771184,1737419451297,-500.0,0.00021466,7]
[349771185,1737419451306,-500.0,0.00021466,7]
[349771186,1737419451315,-500.0,0.00021466,7]
[349771187,1737419451324,-500.0,0.00021466,7]
[349771188,1737419451333,-500.0,0.00021466,7]
[349771189,1737419451342,-500.0,0.00021466,7]
[349771190,1737419451351,-500.0,0.00021466,7]
[349771191,1737419451360,-500.0,0.00021466,7]
[349771192,1737419451369,-500.0,0.00021466,7]
[349771193,1737419451380,-500.0,0.00021466,7]
[349771194,1737419451389,-500.0,0.00021466,7]
[349771195,1737419451398,-500.0,0.00021466,7]
[349771196,1737419451407,-500.0,0.00021466,7]
[349771197,1737419451417,-500.0,0.00021466,7]
[349771198,1737419451426,-500.0,0.00021466,7]
[349771199,1737419451436,-500.0,0.00021466,7]
[349771200,1737419451445,-500.0,0.00021466,7]
[349771201,1737419451455,-500.0,0.00021466,7]
[349771202,1737419451464,-419.7,0.00021466,7]
[349771203,1737419451473,-208.0,0.0002149,2]
[349771204,1737419451482,-211.0,0.0002149,2]
[349771205,1737419451492,-466887.41481025,0.000215,4]
[349771206,1737419451501,-500.0,0.00021515,2]
[349771207,1737419451511,-500.0,0.00021515,2]
[349771208,1737419451520,-1000.0,0.00021521,2]
[349771209,1737419451530,-1574.992,0.00021533,2]
[349771210,1737419451539,-251.112,0.00021533,2]
[349771211,1737419451549,-537.0,0.00021533,2]
[349771212,1737419451558,-3983.0,0.00021533,2]
[349771213,1737419451567,-1269.0,0.00021533,2]
[349771214,1737419451577,-1175.0,0.00021533,2]
[349771215,1737419451586,-2018.0,0.00021533,2]
[349771216,1737419451595,-150.0,0.00021533,2]
[349771217,1737419451605,-150.0,0.00021533,2]
[349771218,1737419451615,-636.0,0.00021533,2]
[349771219,1737419451626,-3901.0,0.00021533,2]
[349771220,1737419451642,-1105.0,0.00021533,2]
[349771221,1737419451652,-429.91334376,0.00021558,2]
[349771222,1737419451662,-1464.8807705,0.0002156,2]
[349771223,1737419451671,-328.80498662,0.0002159,2]
[349771224,1737419451681,-183.78763045,0.00021614,2]
[349771225,1737419451691,-500.0,0.00021614,2]
[349771226,1737419451701,-178.31042281,0.00021614,2]
[349771227,1737419451710,-500.0,0.00021614,2]
[349771228,1737419451719,-500.0,0.00021614,2]
[349771229,1737419451729,-500.0,0.00021614,2]
[349771230,1737419451739,-500.0,0.00021614,2]
[349771231,1737419451748,-500.0,0.00021614,2]
[349771232,1737419451757,-500.0,0.00021614,2]
[349771233,1737419451767,-500.0,0.00021614,2]
[349771234,1737419451777,-500.0,0.00021614,2]
[349771235,1737419451786,-500.0,0.00021614,2]
[349771236,1737419451796,-500.0,0.00021614,2]
[349771237,1737419451805,-500.0,0.00021614,2]
[349771238,1737419451814,-2184.25,0.00021614,2]
[349771239,1737419451824,-500.0,0.00021614,2]
[349771240,1737419451833,-500.0,0.00021614,2]
[349771241,1737419451842,-314.27,0.00021614,2]
[349771242,1737419451855,-450.74021859,0.00021614,2]
[349771243,1737419451869,-3209.35,0.00021614,2]
[349771244,1737419451879,-500.0,0.00021614,2]
[349771245,1737419451889,-500.0,0.00021614,2]
[349771246,1737419451899,-500.0,0.00021614,2]
[349771247,1737419451909,-500.0,0.00021614,2]
[349771248,1737419451918,-500.0,0.00021614,2]
[349771249,1737419451928,-2028.93,0.00021614,2]
[349771250,1737419451937,-500.0,0.00021614,2]
[349771251,1737419451948,-500.0,0.00021614,2]
[349771252,1737419451957,-500.0,0.00021614,2]
[349771253,1737419451969,-543.51,0.00021614,2]
[349771254,1737419451978,-1683.76,0.00021614,2]
[349771255,1737419451988,-500.0,0.00021614,2]
[349771256,1737419451997,-500.0,0.00021614,2]
[349771257,1737419452006,-500.0,0.00021614,2]
[349771258,1737419452016,-500.0,0.00021614,2]
[349771259,1737419452025,-500.0,0.00021614,2]
[349771260,1737419452034,-243.30347484,0.00021615,2]
[349771261,1737419452044,-500.0,0.00021615,2]
[349771262,1737419452053,-500.0,0.00021615,2]
[349771263,1737419452062,-500.0,0.00021615,2]
[349771264,1737419452071,-500.0,0.00021615,2]
[349771265,1737419452081,-500.0,0.00021615,2]
[349771266,1737419452090,-500.0,0.00021615,2]
[349771267,1737419452099,-500.0,0.00021615,2]
[349771268,1737419452108,-565.48,0.00021615,2]
[349771269,1737419452117,-500.0,0.00021615,2]
[349771270,1737419452126,-1097.21,0.00021615,2]
[349771271,1737419452140,-2424.54,0.00021615,2]
[349771272,1737419452149,-732.06,0.00021615,2]
[349771273,1737419452159,-500.0,0.00021615,2]
[349771274,1737419452168,-500.0,0.00021615,2]
[349771275,1737419452180,-1674.8,0.00021615,2]
[349771276,1737419452190,-500.0,0.00021615,2]
[349771277,1737419452199,-908.71,0.00021615,2]
[349771278,1737419452209,-1534.82,0.00021615,2]
[349771279,1737419452218,-500.0,0.00021615,2]
[349771280,1737419452227,-950.83,0.00021615,2]
[349771281,1737419452237,-500.0,0.00021615,2]
[349771282,1737419452246,-748.94,0.00021615,2]
[349771283,1737419452255,-1112.81,0.00021615,2]
[349771284,1737419452264,-527.23,0.00021615,2]
[349771285,1737419452274,-847.73,0.00021615,2]
[349771286,1737419452283,-2428.48,0.00021615,2]
[349771287,1737419452293,-1119.66,0.00021615,2]
[349771288,1737419452303,-1036.96,0.00021615,2]
[349771289,1737419452312,-500.0,0.00021615,2]
[349771290,1737419452441,-1562.21,0.00021615,2]
[349771291,1737419452451,-1000.0,0.00021615,2]
[349771292,1737419452460,-1223.32,0.00021615,2]
[349771293,1737419452469,-500.0,0.00021615,2]
[349771294,1737419452478,-546.59,0.00021615,2]
[349771295,1737419452487,-1208.2,0.00021615,2]
[349771296,1737419452496,-500.0,0.00021615,2]
[349771297,1737419452505,-1831.04,0.00021615,2]
[349771298,1737419452514,-500.0,0.00021615,2]
[349771299,1737419452523,-500.0,0.00021615,2]
[349771300,1737419452532,-1465.95,0.00021615,2]
[349771301,1737419452541,-1779.14,0.00021615,2]
[349771302,1737419452550,-500.0,0.00021615,2]
[349771303,1737419452560,-707.97,0.00021615,2]
[349771304,1737419452569,-500.0,0.00021615,2]
[349771305,1737419452578,-1419.24,0.00021615,2]
[349771306,1737419452588,-500.0,0.00021615,2]
[349771307,1737419452597,-500.0,0.00021615,2]
[349771308,1737419452606,-661.24,0.00021615,2]
[349771309,1737419452615,-2001.01033314,0.00021631,2]
[349771310,1737419452624,-928.62,0.00021643,2]
[349771311,1737419452636,-1662.47,0.00021643,2]
[349771312,1737419452645,-852.81,0.00021643,2]
[349771313,1737419452656,-647.99,0.00021643,2]
[349771314,1737419452665,-1964.8,0.00021643,2]
[349771315,1737419452674,-1260.29,0.00021643,2]
[349771316,1737419452683,-1244.44,0.00021643,2]
[349771317,1737419452692,-1302.24,0.00021643,2]
[349771318,1737419452701,-500.0,0.00021643,2]
[349771319,1737419452710,-918.21,0.00021643,2]
[349771320,1737419452720,-886.03,0.00021643,2]
[349771321,1737419452730,-2259.37,0.00021643,2]
[349771322,1737419452738,-1757.4,0.00021643,2]
[349771323,1737419452748,-1001.14,0.00021643,2]
[349771324,1737419452757,-1034.05,0.00021643,2]
[349771325,1737419452766,-500.0,0.00021643,2]
[349771326,1737419452775,-2979.95,0.00021643,2]
[349771327,1737419452784,-500.0,0.00021643,2]
[349771328,1737419452793,-773.56,0.00021643,2]
[349771329,1737419452802,-873.7,0.00021643,2]
[349771330,1737419452811,-1439.56,0.00021643,2]
[349771331,1737419452820,-500.0,0.00021643,2]
[349771332,1737419452830,-500.0,0.00021643,2]
[349771333,1737419452839,-280.71562892,0.00021643,2]
[349771334,1737419452848,-500.0,0.00021643,2]
[349771335,1737419452859,-2761.08,0.00021643,2]
[349771336,1737419452875,-323.29066929,0.00021643,2]
[349771337,1737419452887,-500.0,0.00021643,2]
[349771338,1737419452896,-455.43321623,0.00021666,2]
[349771339,1737419452905,-5900.42,0.00021685,7]